bitfinex-derivatives/quotes_BNBF0:USTF0_20250908
["timestamp","ask_amount","ask_price","bid_price","bid_amount"]
[1757367929696,0.60773299,878.88,877.51,0.19759367]
[1757367929901,0.60773299,878.87,877.51,0.19759367]
[1757367930099,0.60773299,878.86,877.51,0.19759367]
[1757367930297,0.60773299,878.85,877.51,0.19759367]
[1757367930496,0.60773299,878.84,877.51,0.19759367]
[1757367930701,0.60773299,878.83,877.51,0.19759367]
[1757367930899,0.60773299,878.82,877.51,0.19759367]
[1757367931199,2.5418714,879.22,877.51,0.19759367]
[1757367931200,0.60773299,878.81,877.51,0.19759367]
[1757367931398,0.60773299,878.8,877.51,0.19759367]
[1757367931702,3.5710953,879.63,877.51,0.19759367]
[1757367931703,0.60773299,878.79,877.51,0.19759367]
[1757367931900,0.60773299,878.78,877.51,0.19759367]
[1757367932099,0.60773299,878.77,877.51,0.19759367]
[1757367932302,0.60773299,878.76,877.51,0.19759367]
[1757367932505,0.60773299,878.75,877.51,0.19759367]
[1757367932703,0.60773299,878.74,877.51,0.19759367]
[1757367933006,0.60773299,878.73,877.51,0.19759367]
[1757367933204,0.60773299,878.72,877.51,0.19759367]
[1757367933405,0.60773299,878.71,877.51,0.19759367]
[1757367933603,0.60773299,878.7,877.51,0.19759367]
[1757367933906,1.5266665,878.66,877.51,0.19759367]
[1757367934102,2.13439949,878.65,877.51,0.19759367]
[1757367934303,0.60773299,878.64,877.51,0.19759367]
[1757367934501,0.60773299,878.63,877.51,0.19759367]
[1757367934702,0.60773299,878.62,877.51,0.19759367]
[1757367934904,0.60773299,878.61,877.51,0.19759367]
[1757367935206,0.60773299,878.6,877.51,0.19759367]
[1757367935404,0.60773299,878.59,877.51,0.19759367]
[1757367935604,0.60773299,878.58,877.51,0.19759367]
[1757367935807,0.60773299,878.57,877.51,0.19759367]
[1757367936104,0.60773299,878.56,877.51,0.19759367]
[1757367936307,0.60773299,878.55,877.51,0.19759367]
[1757367936508,0.60773299,878.54,877.51,0.19759367]
[1757367936805,0.60773299,878.53,877.51,0.19759367]
[1757367937008,0.60773299,878.52,877.51,0.19759367]
[1757367937307,0.5469597,878.51,877.51,0.19759367]
[1757367937508,1.5266665,878.61,877.51,0.19759367]
[1757367938108,1.5266665,878.62,877.51,0.19759367]
[1757367938308,1.5266665,878.61,877.51,0.19759367]
[1757367939010,1.5266665,878.62,877.51,0.19759367]
[1757367939506,1.5266665,878.66,877.51,0.19759367]
[1757367940611,1.5266665,878.65,877.51,0.19759367]
[1757367941307,1.5266665,878.64,877.51,0.19759367]
[1757367941713,1.5266665,878.63,877.51,0.19759367]
[1757367942112,1.5266665,878.62,877.51,0.19759367]
[1757367945310,1.5266665,878.61,877.51,0.19759367]
[1757367946010,1.5266665,878.62,877.51,0.19759367]
[1757367946214,2.5418714,879.27,877.51,0.19759367]
[1757367946215,1.5266665,878.61,877.51,0.19759367]
[1757367947216,1.5266665,878.6,877.51,0.19759367]
[1757367948013,1.5266665,878.59,877.51,0.19759367]
[1757367948218,1.5266665,878.58,877.51,0.19759367]
[1757367948716,1.5266665,878.57,877.51,0.19759367]
[1757367949212,1.5266665,878.55,877.51,0.19759367]
[1757367949416,1.5266665,878.53,877.51,0.19759367]
[1757367950317,1.5266665,878.78,877.51,0.19759367]
[1757367950516,1.5266665,878.79,877.51,0.19759367]
[1757367951117,1.5266665,878.78,877.51,0.19759367]
[1757367952917,1.5266665,878.77,877.51,0.19759367]
[1757367953118,1.5266665,878.76,877.51,0.19759367]
[1757367954517,1.5266665,878.59,877.51,0.19759367]
[1757367954714,1.5266665,878.58,877.51,0.19759367]
[1757367955218,1.5266665,878.56,877.51,0.19759367]
[1757367957315,1.5266665,878.61,877.51,0.19759367]
[1757367957518,1.5266665,878.54,877.51,0.19759367]
[1757367957816,1.5266665,878.56,877.51,0.19759367]
[1757367958215,1.5266665,878.58,877.51,0.19759367]
[1757367958419,1.5266665,878.59,877.51,0.19759367]
[1757367959317,1.5266665,878.6,877.51,0.19759367]
[1757367960021,1.5266665,878.59,877.51,0.19759367]
[1757367960520,2.5418714,879.43,877.51,0.19759367]
[1757367960521,1.5266665,878.58,877.51,0.19759367]
[1757367960918,1.5266665,878.57,877.51,0.19759367]
[1757367961419,0.60575611,878.56,877.51,0.19759367]
[1757367961622,0.60575611,878.55,877.51,0.19759367]
[1757367961919,0.60575705,878.54,877.51,0.19759367]
[1757367962118,0.60575705,878.53,877.51,0.19759367]
[1757367962324,0.60575705,878.52,877.51,0.19759367]
[1757367962522,0.60575705,878.51,877.51,0.19759367]
[1757367962822,0.60575705,878.5,877.51,0.19759367]
[1757367963019,0.60575705,878.49,877.51,0.19759367]
[1757367963328,0.60575705,878.48,877.51,0.19759367]
[1757367963531,0.60575705,878.47,877.51,0.19759367]
[1757367963730,0.60575705,878.46,877.51,0.19759367]
[1757367963929,0.60575705,878.45,877.51,0.19759367]
[1757367964228,0.60575705,878.44,877.51,0.19759367]
[1757367964526,0.60575705,878.43,877.51,0.19759367]
[1757367964725,0.60575705,878.42,877.51,0.19759367]
[1757367964926,0.60575705,878.41,877.51,0.19759367]
[1757367965127,0.60575705,878.4,877.51,0.19759367]
[1757367965327,0.60575705,878.39,877.51,0.19759367]
[1757367965526,0.60575705,878.38,877.51,0.19759367]
[1757367965730,0.60575705,878.37,877.51,0.19759367]
[1757367965930,0.60575705,878.36,877.51,0.19759367]
[1757367966127,0.60575705,878.35,877.51,0.19759367]
[1757367966427,0.60575705,878.34,877.51,0.19759367]
[1757367966628,0.60575705,878.33,877.51,0.19759367]
[1757367966832,0.60575705,878.32,877.51,0.19759367]
[1757367967029,0.60575705,878.31,877.51,0.19759367]
[1757367967231,1.5266665,878.47,877.51,0.19759367]
[1757367967432,0.6053828,878.46,877.51,0.19759367]
[1757367967732,0.6053828,878.45,877.51,0.19759367]
[1757367967930,0.6053828,878.44,877.51,0.19759367]
[1757367968129,0.6053828,878.43,877.51,0.19759367]
[1757367968333,0.6053828,878.42,877.51,0.19759367]
[1757367968633,0.6053828,878.41,877.51,0.19759367]
[1757367968828,0.6053828,878.4,877.51,0.19759367]
[1757367969129,0.6053828,878.39,877.51,0.19759367]
[1757367969328,1.5266665,878.46,877.51,0.19759367]
[1757367969528,0.60531001,878.45,877.51,0.19759367]
[1757367969731,0.60531001,878.44,877.51,0.19759367]
[1757367970032,0.60531001,878.43,877.51,0.19759367]
[1757367970232,0.60531001,878.42,877.51,0.19759367]
[1757367970431,0.60531001,878.41,877.51,0.19759367]
[1757367970732,0.60531001,878.4,877.51,0.19759367]
[1757367970929,1.5266665,878.74,877.51,0.19759367]
[1757367970930,0.60531001,878.39,877.51,0.19759367]
[1757367971135,0.60531001,878.38,877.51,0.19759367]
[1757367971334,0.60531001,878.37,877.51,0.19759367]
[1757367971534,0.60531001,878.36,877.51,0.19759367]
[1757367971837,0.60531001,878.35,877.51,0.19759367]
[1757367972037,0.60531001,878.34,877.51,0.19759367]
[1757367972337,0.60531001,878.33,877.51,0.19759367]
[1757367972639,0.60531001,878.32,877.51,0.19759367]
[1757367972835,0.60531001,878.31,877.51,0.19759367]
[1757367973037,1.5266665,878.74,877.51,0.19759367]
[1757367973237,2.13189763,878.73,877.51,0.19759367]
[1757367973537,0.60523113,878.72,877.51,0.19759367]
[1757367973833,0.60523113,878.71,877.51,0.19759367]
[1757367974032,0.60523113,878.7,877.51,0.19759367]
[1757367974236,0.60523113,878.69,877.51,0.19759367]
[1757367974436,0.60523113,878.68,877.51,0.19759367]
[1757367974734,0.60523113,878.67,876.84,1.5172356]
[1757367974931,0.60523113,878.66,877.62,0.19780763]
[1757367975233,0.60523113,878.65,876.84,1.5172356]
[1757367975431,0.60523113,878.64,876.84,1.5172356]
[1757367975636,0.60523113,878.63,877.72,0.19780876]
[1757367975838,0.60523113,878.62,876.84,1.5172356]
[1757367976133,0.60523113,878.61,877.8,0.19781044]
[1757367976339,0.60523113,878.6,876.84,1.5172356]
[1757367976536,0.60523113,878.59,876.84,1.5172356]
[1757367976735,0.60523113,878.58,877.88,0.19781157]
[1757367976939,0.60523113,878.58,876.84,1.5172356]
[1757367976940,0.60523113,878.57,876.84,1.5172356]
[1757367977140,0.60518242,878.56,877.94,0.19781325]
[1757367977334,0.60518242,878.55,877.94,0.19781325]
[1757367977539,0.60518242,878.54,876.84,1.5172356]
[1757367977737,0.60518242,878.53,878.0,0.19781438]
[1757367977936,0.60518242,878.52,876.84,1.5172356]
[1757367978239,0.60518242,878.51,878.05,0.19781607]
[1757367978438,0.60518242,878.5,878.05,0.19781607]
[1757367978639,1.5266665,878.74,876.84,1.5172356]
[1757367978640,0.60518242,878.49,876.84,1.5172356]
[1757367978840,0.60518242,878.48,878.09,0.19781719]
[1757367979042,0.60518242,878.47,876.82,1.5172356]
[1757367979234,0.60518242,878.46,876.82,1.5172356]
[1757367979537,0.60518242,878.45,876.82,1.5172356]
[1757367979735,0.60518242,878.44,876.82,1.5172356]
[1757367979935,0.60518242,878.43,877.22,0.19782113]
[1757367980139,0.60518242,878.42,877.22,0.19782113]
[1757367980340,0.60518242,878.41,877.22,0.19782113]
[1757367980538,0.60518242,878.4,877.22,0.19782113]
[1757367980736,0.60518242,878.39,877.22,0.19782113]
[1757367981041,0.60518242,878.38,877.22,0.19782113]
[1757367981341,0.60518242,878.37,877.22,0.19782113]
[1757367981537,0.60518242,878.36,877.22,0.19782113]
[1757367981741,0.60518242,878.35,877.22,0.19782113]
[1757367982043,0.60518242,878.34,877.22,0.19782113]
[1757367982241,0.60518242,878.33,877.22,0.19782113]
[1757367982440,0.60518242,878.32,877.22,0.19782113]
[1757367982638,0.60518242,878.31,877.22,0.19782113]
[1757367982839,1.5266665,878.5,877.22,0.19782113]
[1757367983042,0.60510554,878.49,877.22,0.19782113]
[1757367983338,0.60510554,878.48,877.22,0.19782113]
[1757367983537,0.60510554,878.47,877.22,0.19782113]
[1757367983741,0.60510554,878.46,877.22,0.19782113]
[1757367983938,0.60510554,878.45,877.22,0.19782113]
[1757367984141,0.60510554,878.44,877.22,0.19782113]
[1757367984339,0.60510554,878.43,877.22,0.19782113]
[1757367984541,0.60510554,878.42,877.22,0.19782113]
[1757367984740,0.60510554,878.41,877.22,0.19782113]
[1757367984942,0.60510554,878.4,877.22,0.19782113]
[1757367985140,0.60510554,878.39,877.22,0.19782113]
[1757367985443,0.60510554,878.38,877.22,0.19782113]
[1757367985640,0.60510554,878.37,877.22,0.19782113]
[1757367985841,0.60510554,878.36,877.22,0.19782113]
[1757367986044,0.60510554,878.35,877.22,0.19782113]
[1757367986240,0.60510554,878.34,877.22,0.19782113]
[1757367986445,0.60510554,878.33,877.22,0.19782113]
[1757367986646,0.60510554,878.32,877.22,0.19782113]
[1757367986847,0.60510554,878.31,877.22,0.19782113]
[1757367987147,1.5266665,878.51,877.22,0.19782113]
[1757367987344,0.60510186,878.5,877.22,0.19782113]
[1757367987547,0.60510186,878.49,877.22,0.19782113]
[1757367987847,0.60510186,878.48,877.22,0.19782113]
[1757367988147,0.60510186,878.47,877.22,0.19782113]
[1757367988343,0.60510186,878.46,877.22,0.19782113]
[1757367988544,0.60510186,878.45,877.22,0.19782113]
[1757367988742,0.60510186,878.44,877.22,0.19782113]
[1757367988948,0.60510186,878.43,877.22,0.19782113]
[1757367989243,0.60510186,878.42,877.22,0.19782113]
[1757367989447,0.60510186,878.41,877.22,0.19782113]
[1757367989646,0.60510186,878.4,877.22,0.19782113]
[1757367989849,0.60510186,878.39,877.22,0.19782113]
[1757367990048,0.60510186,878.38,877.22,0.19782113]
[1757367990247,0.60510186,878.37,877.22,0.19782113]
[1757367990450,0.60510186,878.36,877.22,0.19782113]
[1757367990656,0.60510186,878.35,877.22,0.19782113]
[1757367990952,0.60510186,878.34,877.22,0.19782113]
[1757367991152,0.60510186,878.33,877.22,0.19782113]
[1757367991352,0.60510186,878.32,877.22,0.19782113]
[1757367991652,0.60510186,878.31,877.22,0.19782113]
[1757367991852,1.5266665,878.5,877.22,0.19782113]
[1757367992057,0.60508876,878.49,877.22,0.19782113]
[1757367992360,0.60510579,878.48,877.22,0.19782113]
[1757367992560,0.60510579,878.47,877.22,0.19782113]
[1757367992760,0.60510579,878.46,877.22,0.19782113]
[1757367992958,0.60510579,878.45,877.22,0.19782113]
[1757367993161,1.5266665,878.49,877.22,0.19782113]
[1757367993162,0.60510579,878.44,877.22,0.19782113]
[1757367993359,0.60510579,878.43,877.22,0.19782113]
[1757367993563,0.60510579,878.42,877.22,0.19782113]
[1757367993862,0.60510579,878.41,877.22,0.19782113]
[1757367994060,0.60510579,878.4,877.22,0.19782113]
[1757367994259,0.60510579,878.39,877.22,0.19782113]
[1757367994464,0.60510579,878.38,877.22,0.19782113]
[1757367994664,0.60510579,878.37,877.22,0.19782113]
[1757367994861,0.60510579,878.36,877.22,0.19782113]
[1757367995066,0.60510579,878.35,877.22,0.19782113]
[1757367995263,0.60510579,878.34,877.22,0.19782113]
[1757367995468,0.60510579,878.33,877.22,0.19782113]
[1757367995669,0.60510579,878.32,877.22,0.19782113]
[1757367995869,0.60510579,878.31,877.22,0.19782113]
[1757367996165,1.5266665,878.48,877.22,0.19782113]
[1757367996369,2.13183939,878.47,877.22,0.19782113]
[1757367996565,0.60517289,878.46,877.22,0.19782113]
[1757367996767,0.60517289,878.45,877.22,0.19782113]
[1757367996970,0.60517289,878.44,877.22,0.19782113]
[1757367997171,0.60517289,878.43,877.22,0.19782113]
[1757367997365,0.60517289,878.42,877.22,0.19782113]
[1757367997671,1.5266665,878.38,877.22,0.19782113]
[1757367997865,1.5266665,878.38,877.29,1.0130976]
[1757367998567,1.5266665,878.38,877.3,1.0130976]
[1757368001273,1.5266665,878.37,877.3,1.0130976]
[1757368001472,1.5266665,878.37,877.31,1.0130976]
[1757368003772,1.37399986,878.37,877.31,1.0130976]
[1757368004072,2.5418714,878.94,877.31,1.0130976]
[1757368004274,2.5418714,878.98,877.31,1.0130976]
[1757368005770,2.5418714,878.97,877.31,1.0130976]
[1757368006275,2.5418714,879.0,877.31,1.0130976]
[1757368006774,3.5710953,879.27,877.31,1.0130976]
[1757368006775,2.5418714,878.99,877.31,1.0130976]
[1757368007075,2.5418714,878.99,877.3,1.0130976]
[1757368007274,3.5710953,879.29,877.3,1.0130976]
[1757368007275,2.5418714,879.03,877.3,1.0130976]
[1757368007473,2.5418714,879.03,877.31,1.0130976]
[1757368008076,2.5418714,879.02,877.31,1.0130976]
[1757368008376,2.5418714,879.06,877.3,1.0130976]
[1757368009377,2.5418714,879.06,877.31,1.0130976]
[1757368009573,2.5418714,879.05,877.31,1.0130976]
[1757368010475,2.5418714,879.04,877.31,1.0130976]
[1757368011177,2.5418714,879.04,877.22,0.19782113]
[1757368011178,2.5418714,879.04,877.32,1.0130976]
[1757368012380,2.5418714,879.04,877.33,1.0130976]
[1757368012577,2.5418714,879.03,877.33,1.0130976]
[1757368013477,2.5418714,879.03,877.34,1.0130976]
[1757368013979,2.5418714,879.03,877.32,1.0130976]
[1757368014179,2.5418714,878.97,877.32,1.0130976]
[1757368014383,2.5418714,878.97,877.33,1.0130976]
[1757368015385,2.5418714,878.97,877.34,1.0130976]
[1757368015681,2.5418714,878.93,877.35,1.0130976]
[1757368016385,2.5418714,878.93,877.22,0.19782113]
[1757368016386,2.5418714,878.93,877.36,1.0130976]
[1757368016782,3.5710953,879.23,877.36,1.0130976]
[1757368016783,2.5418714,878.91,877.36,1.0130976]
[1757368016985,2.5418714,878.91,877.38,1.0130976]
[1757368017186,2.5418714,878.87,877.37,1.0130976]
[1757368017384,2.5418714,878.87,877.38,1.0130976]
[1757368017786,2.5418714,878.86,877.38,1.0130976]
[1757368018089,2.5418714,878.86,877.39,1.0130976]
[1757368018289,2.5418714,878.82,877.39,1.0130976]
[1757368022397,0.62291374,878.81,877.22,0.19782113]
[1757368022594,2.5418714,878.77,877.22,0.19782113]
[1757368022891,0.62291374,878.76,877.22,0.19782113]
[1757368023191,0.62291374,878.75,877.22,0.19782113]
[1757368023394,0.62291374,878.74,877.22,0.19782113]
[1757368023594,0.62291374,878.73,877.22,0.19782113]
[1757368023792,1.5323506,878.31,877.22,0.19782113]
[1757368024095,0.85209352,878.31,877.22,0.19782113]
[1757368029899,0.76688417,878.31,877.22,0.19782113]
[1757368030704,0.51614568,878.31,877.22,0.19782113]
[1757368031804,0.51614568,878.31,877.22,1.71505673]
[1757368033200,0.51614568,878.31,877.22,0.19782113]
[1757368033905,0.51614568,878.31,877.24,1.5172356]
[1757368035107,0.51614568,878.31,877.23,1.5172356]
[1757368035407,0.51614568,878.31,877.24,1.5172356]
[1757368035908,0.46453112,878.31,877.24,1.5172356]
[1757368036708,0.31640045,878.31,877.24,1.5172356]
[1757368037106,0.31640045,878.31,877.25,1.5172356]
[1757368041908,0.28476041,878.31,877.25,1.5172356]
[1757368042614,2.5418714,878.83,877.25,1.5172356]
[1757368042813,0.60970313,878.82,877.25,1.5172356]
[1757368043013,0.60970313,878.81,877.25,1.5172356]
[1757368043309,0.60970313,878.8,877.25,1.5172356]
[1757368043509,0.60970313,878.79,877.25,1.5172356]
[1757368043710,0.60970313,878.78,877.25,1.5172356]
[1757368043909,0.60970313,878.77,877.25,1.5172356]
[1757368044109,0.60970313,878.76,877.25,1.5172356]
[1757368044314,0.60970313,878.75,877.25,1.5172356]
[1757368044510,0.60970313,878.74,877.25,1.5172356]
[1757368044714,0.60970313,878.73,877.25,1.5172356]
[1757368045011,0.60970313,878.72,877.25,1.5172356]
[1757368045211,0.60970313,878.71,877.25,1.5172356]
[1757368045413,0.60970313,878.7,877.25,1.5172356]
[1757368045715,0.60970313,878.69,877.25,1.5172356]
[1757368046012,0.60970313,878.68,877.25,1.5172356]
[1757368046216,0.60970313,878.67,877.25,1.5172356]
[1757368046416,0.60970313,878.66,877.25,1.5172356]
[1757368046713,0.60970313,878.65,877.25,1.5172356]
[1757368047013,0.60970313,878.64,877.25,1.5172356]
[1757368047215,0.60970313,878.63,877.25,1.5172356]
[1757368047414,0.60970313,878.62,877.25,1.5172356]
[1757368047610,0.60970313,878.61,877.25,1.5172356]
[1757368047814,0.60970313,878.6,877.25,1.5172356]
[1757368048015,0.60970313,878.59,877.25,1.5172356]
[1757368048311,0.60970313,878.58,877.25,1.5172356]
[1757368048515,0.60970313,878.57,877.25,1.5172356]
[1757368048815,0.60970313,878.56,877.25,1.5172356]
[1757368049013,0.54873282,878.55,877.22,0.19782113]
[1757368049314,2.5418714,878.83,877.22,0.19782113]
[1757368049512,2.5418714,879.48,877.22,0.19782113]
[1757368050013,2.5418714,879.47,877.22,0.19782113]
[1757368053916,2.5418714,879.26,877.28,1.5172356]
[1757368054214,2.5418714,879.26,877.26,1.5172356]
[1757368054417,2.5418714,879.28,877.26,1.5172356]
[1757368054917,3.5710953,879.63,877.22,0.19782113]
[1757368055617,2.5418714,879.85,877.22,0.19782113]
[1757368056422,2.5418714,879.84,877.22,0.19782113]
[1757368057518,2.5418714,879.85,877.22,0.19782113]
[1757368058521,2.5418714,879.86,877.22,0.19782113]
[1757368059623,2.5418714,879.87,877.22,0.19782113]
[1757368061024,0.60958024,879.86,877.22,0.19782113]
[1757368061321,0.60958024,879.85,877.22,0.19782113]
[1757368061620,0.60958024,879.84,877.22,0.19782113]
[1757368061821,0.60958024,879.83,877.22,0.19782113]
[1757368062025,1.5286862,878.89,877.22,0.19782113]
[1757368062321,0.60958024,878.88,877.22,0.19782113]
[1757368062621,0.60958024,878.87,877.22,0.19782113]
[1757368062824,0.60958024,878.86,877.22,0.19782113]
[1757368063020,1.5286862,878.89,877.22,0.19782113]
[1757368063021,0.60958024,878.85,877.22,0.19782113]
[1757368063224,0.60958024,878.84,877.22,0.19782113]
[1757368063423,0.60958024,878.83,877.22,0.19782113]
[1757368063624,0.60958024,878.82,877.22,0.19782113]
[1757368063924,0.60958024,878.81,877.22,0.19782113]
[1757368064125,0.60958024,878.8,877.22,0.19782113]
[1757368064322,0.60958024,878.79,877.22,0.19782113]
[1757368064525,0.60958024,878.78,877.22,0.19782113]
[1757368064826,1.5286862,878.63,877.22,0.19782113]
[1757368065024,0.60958024,878.62,877.22,0.19782113]
[1757368065226,0.60958024,878.61,877.22,0.19782113]
[1757368065427,0.60958024,878.6,877.22,0.19782113]
[1757368065727,0.60958024,878.59,877.22,0.19782113]
[1757368065933,0.60958024,878.58,877.22,0.19782113]
[1757368066133,0.60958024,878.57,877.22,0.19782113]
[1757368066334,0.60958024,878.56,877.22,0.19782113]
[1757368066633,0.60958024,878.55,877.22,0.19782113]
[1757368066828,0.60958024,878.54,877.22,0.19782113]
[1757368067032,0.60958024,878.53,877.22,0.19782113]
[1757368067231,0.60958024,878.52,877.22,0.19782113]
[1757368067430,0.60958024,878.51,877.22,0.19782113]
[1757368067633,0.60958024,878.5,877.22,0.19782113]
[1757368067833,1.5286862,878.67,877.22,0.19782113]
[1757368068030,0.60918168,878.66,877.22,0.19782113]
[1757368068231,0.60918168,878.65,877.22,0.19782113]
[1757368068434,0.60918168,878.64,877.22,0.19782113]
[1757368068635,0.60918168,878.63,877.22,0.19782113]
[1757368068836,1.5286862,878.61,877.22,0.19782113]
[1757368069033,0.60918168,878.6,877.22,0.19782113]
[1757368069236,0.60918168,878.59,877.22,0.19782113]
[1757368069533,0.60918168,878.58,877.22,0.19782113]
[1757368069732,0.60918168,878.57,877.22,0.19782113]
[1757368069932,1.5286862,878.7,877.22,0.19782113]
[1757368069933,0.60918168,878.56,877.22,0.19782113]
[1757368070139,0.60918168,878.55,877.22,0.19782113]
[1757368070434,0.60918168,878.54,877.22,0.19782113]
[1757368070636,0.60918168,878.53,877.22,0.19782113]
[1757368070837,1.5286862,878.7,877.22,0.19782113]
[1757368071037,0.60903173,878.69,877.22,0.19782113]
[1757368071239,0.60903173,878.68,877.22,0.19782113]
[1757368071535,0.60903173,878.67,877.22,0.19782113]
[1757368071739,0.60903173,878.66,877.22,0.19782113]
[1757368072039,0.60903173,878.65,877.22,0.19782113]
[1757368072241,0.60903173,878.64,877.22,0.19782113]
[1757368072441,0.60903173,878.63,877.22,0.19782113]
[1757368072742,0.60903173,878.62,877.22,0.19782113]
[1757368073041,0.60903173,878.61,877.22,0.19782113]
[1757368073237,0.60903173,878.6,877.22,0.19782113]
[1757368073442,0.60903173,878.59,877.22,0.19782113]
[1757368073637,0.60903173,878.58,877.22,0.19782113]
[1757368073942,0.60903173,878.57,877.22,0.19782113]
[1757368074137,0.60903173,878.56,877.22,0.19782113]
[1757368074342,0.60903173,878.55,877.22,0.19782113]
[1757368074642,0.60903173,878.54,877.22,0.19782113]
[1757368074938,0.60903173,878.53,877.22,0.19782113]
[1757368075142,1.5286862,878.77,877.22,0.19782113]
[1757368075442,0.60884238,878.76,877.22,0.19782113]
[1757368075642,0.60884238,878.75,877.22,0.19782113]
[1757368075839,0.60884238,878.74,877.22,0.19782113]
[1757368076043,0.60884238,878.73,877.22,0.19782113]
[1757368076244,0.60884238,878.72,877.22,0.19782113]
[1757368076544,0.60884238,878.71,877.22,0.19782113]
[1757368076745,0.60884238,878.7,877.22,0.19782113]
[1757368076940,0.60884238,878.69,877.22,0.19782113]
[1757368077143,0.60884238,878.68,877.22,0.19782113]
[1757368077342,0.60884238,878.67,877.22,0.19782113]
[1757368077540,0.60884238,878.66,877.22,0.19782113]
[1757368077743,0.60884238,878.65,877.22,0.19782113]
[1757368077943,0.60884238,878.64,877.22,0.19782113]
[1757368078149,0.60884238,878.63,877.22,0.19782113]
[1757368078446,0.60884238,878.62,877.22,0.19782113]
[1757368078743,0.60884238,878.61,877.22,0.19782113]
[1757368078946,1.5286862,878.96,877.22,0.19782113]
[1757368079146,1.5286862,878.94,877.22,0.19782113]
[1757368079346,0.60856398,878.93,877.22,0.19782113]
[1757368079546,0.60856398,878.92,877.22,0.19782113]
[1757368079744,0.60856398,878.91,877.22,0.19782113]
[1757368080042,0.60856398,878.9,877.22,0.19782113]
[1757368080245,0.60856398,878.89,877.22,0.19782113]
[1757368080447,0.60856398,878.88,877.22,0.19782113]
[1757368080742,0.60856398,878.87,877.22,0.19782113]
[1757368080947,0.60856398,878.86,877.22,0.19782113]
[1757368081145,0.60856398,878.85,877.22,0.19782113]
[1757368081445,0.60856398,878.84,877.22,0.19782113]
[1757368081647,0.60856398,878.83,877.23,1.5172356]
[1757368081844,0.60856398,878.82,877.23,1.5172356]
[1757368082145,0.60856398,878.81,877.23,1.5172356]
[1757368082347,0.60856398,878.8,877.26,1.5172356]
[1757368082546,5.1015647,880.8,877.22,0.19782113]
[1757368082547,0.60856398,878.79,877.27,1.5172356]
[1757368082845,0.60856398,878.78,877.27,1.5172356]
[1757368083148,0.60856398,878.77,877.27,1.5172356]
[1757368083348,0.60856398,878.76,877.27,1.5172356]
[1757368083545,0.60856398,878.75,877.34,1.5172356]
[1757368083746,1.5286862,879.05,877.34,1.5172356]
[1757368083942,1.5286862,879.03,877.34,1.5172356]
[1757368084247,0.6084144,879.02,877.36,1.5172356]
[1757368084446,0.6084144,879.01,877.35,1.5172356]
[1757368084648,0.6084144,879.0,877.35,1.5172356]
[1757368084849,0.6084144,878.99,877.35,1.5172356]
[1757368085047,0.6084144,878.98,877.35,1.5172356]
[1757368085245,0.6084144,878.97,877.35,1.5172356]
[1757368085447,0.6084144,878.96,877.34,1.5172356]
[1757368085647,0.6084144,878.95,877.34,1.5172356]
[1757368085846,0.6084144,878.94,877.32,1.5172356]
[1757368086049,0.6084144,878.93,877.32,1.5172356]
[1757368086247,0.6084144,878.92,877.32,1.5172356]
[1757368086451,0.6084144,878.91,877.29,1.5172356]
[1757368086651,0.6084144,878.9,877.29,1.5172356]
[1757368086951,0.6084144,878.89,877.3,1.5172356]
[1757368087251,0.6084144,878.88,877.3,1.5172356]
[1757368087450,0.60801332,878.87,877.3,1.5172356]
[1757368087647,0.60801332,878.86,877.3,1.5172356]
[1757368087854,0.60801332,878.85,877.3,1.5172356]
[1757368088147,0.60801332,878.84,877.3,1.5172356]
[1757368088348,0.60801332,878.83,877.29,1.5172356]
[1757368088552,0.60801332,878.82,877.29,1.5172356]
[1757368088751,0.60801332,878.81,877.29,1.5172356]
[1757368089052,0.60801332,878.8,877.23,1.5172356]
[1757368089250,0.60801332,878.79,877.22,0.19782113]
[1757368089553,0.60801332,878.78,877.22,0.19782113]
[1757368089855,0.60801332,878.77,877.22,0.19782113]
[1757368090054,0.60801332,878.76,877.22,0.19782113]
[1757368090252,0.60801332,878.75,877.22,0.19782113]
[1757368090454,0.60801332,878.74,877.22,0.19782113]
[1757368090660,1.5286862,879.2,877.22,0.19782113]
[1757368090856,0.60783901,879.19,877.22,0.19782113]
[1757368091060,0.60783901,879.18,877.22,0.19782113]
[1757368091256,0.60783901,879.17,877.22,0.19782113]
[1757368091455,0.60783901,879.16,877.22,0.19782113]
[1757368091754,0.60783901,879.15,877.22,0.19782113]
[1757368091957,0.60783901,879.14,877.22,0.19782113]
[1757368092156,0.60783901,879.13,877.22,0.19782113]
[1757368092356,0.60783901,879.12,877.22,0.19782113]
[1757368092659,0.60783901,879.11,877.22,0.19782113]
[1757368092854,0.60783901,879.1,877.22,0.19782113]
[1757368093054,0.60783901,879.09,877.22,0.19782113]
[1757368093258,0.60783901,879.08,877.22,0.19782113]
[1757368093455,0.60783901,879.07,877.22,0.19782113]
[1757368093660,0.60783901,879.06,877.22,0.19782113]
[1757368093856,0.60783901,879.05,877.22,0.19782113]
[1757368094058,0.60783901,879.04,877.22,0.19782113]
[1757368094262,0.60783901,879.03,877.22,0.19782113]
[1757368094562,0.60783901,879.02,877.22,0.19782113]
[1757368094759,0.60783901,879.01,877.22,0.19782113]
[1757368094959,0.60783901,879.0,877.22,0.19782113]
[1757368095158,0.60783901,878.99,877.22,0.19782113]
[1757368095458,0.60783901,878.98,877.22,0.19782113]
[1757368095662,0.60783901,878.97,877.22,0.19782113]